fUSD/lending_fUSD_20250611
["ID","MTS","AMOUNT","RATE_DAILY","PERIOD"]
[365422375,1749663040659,-490.0,0.00019178,2]
[365422377,1749663040668,-490.0,0.00019178,2]
[365422379,1749663040677,-490.0,0.00019178,2]
[365422381,1749663040687,-490.0,0.00019178,2]
[365422383,1749663040696,-490.0,0.00019178,2]
[365422385,1749663040705,-480.0,0.00019178,2]
[365422387,1749663040714,-490.0,0.00019178,2]
[365422389,1749663040723,-490.0,0.00019178,2]
[365422391,1749663040732,-490.0,0.00019178,2]
[365422393,1749663040741,-157.72449,0.00019178,2]
[365422395,1749663040751,-153.76506401,0.00019178,2]
[365422398,1749663040769,-461.44493599,0.00019178,2]
[365422400,1749663040781,-33.55506396,0.00019178,2]
[365422403,1749663040798,-587.68493604,0.00019178,2]
[365422405,1749663040810,-490.0,0.00019178,2]
[365422408,1749663040821,-346.93185997,0.00019178,2]
[365422410,1749663040832,-433.42703624,0.00019178,2]
[365422412,1749663040844,-490.0,0.00019178,2]
[365422414,1749663040856,-490.0,0.00019178,2]
[365422417,1749663040868,-490.0,0.00019178,2]
[365422419,1749663040881,-490.0,0.00019178,2]
[365422421,1749663040893,-490.0,0.00019178,2]
[365422424,1749663040906,-490.0,0.00019178,2]
[365422426,1749663040918,-490.0,0.00019178,2]
[365422428,1749663040928,-480.0,0.00019178,2]
[365422430,1749663040939,-873.69,0.00019178,2]
[365422432,1749663040951,-490.0,0.00019178,2]
[365422435,1749663040963,-480.0,0.00019178,2]
[365422437,1749663040975,-490.0,0.00019178,2]
[365422439,1749663040987,-490.0,0.00019178,2]
[365422442,1749663041001,-490.0,0.00019178,2]
[365422444,1749663041016,-239.0846443,0.00019178,2]
[365422446,1749663041033,-240.9153557,0.00019178,2]
[365422449,1749663041045,-176.37241,0.00019178,2]
[365422451,1749663041057,-490.0,0.00019178,2]
[365422453,1749663041070,-490.0,0.00019178,2]
[365422456,1749663041083,-500.0,0.00019178,2]
[365422458,1749663041096,-639.14033488,0.00019178,2]
[365422460,1749663041109,-477.31,0.00019178,2]
[365422462,1749663041121,-490.0,0.00019178,2]
[365422464,1749663041132,-370.29719328,0.00019178,2]
[365422469,1749663041166,-119.70280672,0.00019178,2]
[365422471,1749663041180,-490.0,0.00019178,2]
[365422473,1749663041192,-258.19490525,0.00019178,2]
[365422476,1749663041208,-231.80509475,0.00019178,2]
[365422478,1749663041218,-423.03490125,0.00019178,2]
[365422481,1749663041231,-66.96509875,0.00019178,2]
[365422483,1749663041242,-490.0,0.00019178,2]
[365422485,1749663041253,-490.0,0.00019178,2]
[365422487,1749663041268,-82.67582265,0.00019178,2]
[365422610,1749663042531,-397.32417735,0.00019178,2]
[365422612,1749663042542,-480.0,0.00019178,2]
[365422614,1749663042553,-490.0,0.00019178,2]
[365422616,1749663042563,-490.0,0.00019178,2]
[365422618,1749663042574,-490.0,0.00019178,2]
[365422621,1749663042585,-165.77472686,0.00019178,2]
[365422623,1749663042599,-324.22527314,0.00019178,2]
[365422625,1749663042610,-146.21407808,0.00019178,2]
[365422628,1749663042624,-343.78592192,0.00019178,2]
[365422630,1749663042635,-141.51907808,0.00019178,2]
[365422632,1749663042649,-731.14092192,0.00019178,2]
[365422635,1749663042660,-635.76,0.00019178,2]
[365422637,1749663042671,-490.0,0.00019178,2]
[365422639,1749663042682,-668.45,0.00019178,2]
[365422641,1749663042693,-490.0,0.00019178,2]
[365422643,1749663042705,-244.37452266,0.00019178,2]
[365422645,1749663042716,-242.02,0.00019178,2]
[365422648,1749663042727,-444.84412001,0.00019178,2]
[365422650,1749663042738,-480.0,0.00019178,2]
[365422652,1749663042749,-705.03,0.00019178,2]
[365422654,1749663042760,-360.0,0.00019178,2]
[365422656,1749663042771,-490.0,0.00019178,2]
[365422659,1749663042782,-514.22,0.00019178,2]
[365422661,1749663042794,-490.0,0.00019178,2]
[365422663,1749663042806,-490.0,0.00019178,2]
[365422665,1749663042818,-490.0,0.00019178,2]
[365422667,1749663042830,-490.0,0.00019178,2]
[365422670,1749663042842,-490.0,0.00019178,2]
[365422672,1749663042853,-490.0,0.00019178,2]
[365422674,1749663042865,-194.19033185,0.00019178,2]
[365422676,1749663042876,-490.0,0.00019178,2]
[365422678,1749663042887,-517.04,0.00019178,2]
[365422681,1749663042899,-490.0,0.00019178,2]
[365422683,1749663042911,-490.0,0.00019178,2]
[365422685,1749663042923,-490.0,0.00019178,2]
[365422688,1749663042935,-761.0,0.00019178,2]
[365422690,1749663042947,-480.0,0.00019178,2]
[365422692,1749663042958,-490.0,0.00019178,2]
[365422694,1749663042969,-490.0,0.00019178,2]
[365422696,1749663042981,-533.62,0.00019178,2]
[365422698,1749663042992,-490.0,0.00019178,2]
[365422701,1749663043003,-490.0,0.00019178,2]
[365422703,1749663043015,-490.0,0.00019178,2]
[365422705,1749663043026,-490.0,0.00019178,2]
[365422707,1749663043040,-550.74,0.00019178,2]
[365422709,1749663043051,-490.0,0.00019178,2]
[365422712,1749663043063,-490.0,0.00019178,2]
[365422714,1749663043074,-490.0,0.00019178,2]
[365422715,1749663043086,-490.0,0.00019178,2]
[365422718,1749663043103,-490.0,0.00019178,2]
[365422722,1749663043114,-490.0,0.00019178,2]
[365422725,1749663043125,-500.0,0.00019178,2]
[365422728,1749663043137,-490.0,0.00019178,2]
[365422731,1749663043148,-502.32635105,0.00019178,2]
[365422733,1749663043159,-490.0,0.00019178,2]
[365422734,1749663043171,-480.0,0.00019178,2]
[365422736,1749663043183,-490.0,0.00019178,2]
[365422738,1749663043193,-490.0,0.00019178,2]
[365422740,1749663043204,-490.0,0.00019178,2]
[365422742,1749663043215,-490.0,0.00019178,2]
[365422743,1749663043226,-490.0,0.00019178,2]
[365422745,1749663043236,-480.0,0.00019178,2]
[365422747,1749663043248,-1076.01,0.00019178,2]
[365422749,1749663043258,-480.0,0.00019178,2]
[365422751,1749663043269,-498.08,0.00019178,2]
[365422753,1749663043281,-490.0,0.00019178,2]
[365422754,1749663043293,-490.0,0.00019178,2]
[365422756,1749663043304,-490.0,0.00019178,2]
[365422758,1749663043316,-462.05590371,0.00019178,2]
[365422760,1749663043327,-490.0,0.00019178,2]
[365422762,1749663043339,-541.87127857,0.00019178,2]
[365422764,1749663043351,-490.0,0.00019178,2]
[365422766,1749663043363,-490.0,0.00019178,2]
[365422768,1749663043375,-491.4,0.00019178,2]
[365422770,1749663043386,-490.0,0.00019178,2]
[365422772,1749663043397,-480.0,0.00019178,2]
[365422773,1749663043407,-490.7,0.00019178,2]
[365422775,1749663043418,-490.0,0.00019178,2]
[365422777,1749663043429,-490.0,0.00019178,2]
[365422779,1749663043440,-490.0,0.00019178,2]
[365422781,1749663043451,-1000.0,0.00019178,2]
[365422782,1749663043462,-490.0,0.00019178,2]
[365422784,1749663043472,-490.0,0.00019178,2]
[365422786,1749663043483,-490.0,0.00019178,2]
[365422788,1749663043494,-480.0,0.00019178,2]
[365422790,1749663043504,-490.0,0.00019178,2]
[365422792,1749663043516,-480.0,0.00019178,2]
[365422794,1749663043528,-438.01982961,0.00019178,2]
[365422796,1749663043544,-48.87195317,0.00019178,2]
[365422799,1749663043556,-490.0,0.00019178,2]
[365422800,1749663043567,-490.0,0.00019178,2]
[365422802,1749663043577,-480.0,0.00019178,2]
[365422804,1749663043588,-490.0,0.00019178,2]
[365422806,1749663043599,-490.0,0.00019178,2]
[365422808,1749663043609,-490.0,0.00019178,2]
[365422810,1749663043620,-490.0,0.00019178,2]
[365422812,1749663043630,-480.0,0.00019178,2]
[365422814,1749663043641,-510.42,0.00019178,2]
[365422816,1749663043659,-483.65379285,0.00019178,2]
[365422818,1749663043670,-490.0,0.00019178,2]
[365422820,1749663043681,-566.29,0.00019178,2]
[365422822,1749663043693,-490.0,0.00019178,2]
[365422824,1749663043716,-490.0,0.00019178,2]
[365422826,1749663043737,-490.0,0.00019178,2]
[365422828,1749663043749,-490.0,0.00019178,2]
[365422830,1749663043761,-490.0,0.00019178,2]
[365422832,1749663043771,-490.0,0.00019178,2]
[365422833,1749663043782,-471.51659741,0.00019178,2]
[365422836,1749663043796,-8.48340259,0.00019178,2]
[365422838,1749663043807,-490.0,0.00019178,2]
[365422840,1749663043817,-490.0,0.00019178,2]
[365422842,1749663043827,-534.29,0.00019178,2]
[365422844,1749663043838,-421.56544818,0.00019178,2]
[365422845,1749663043848,-480.0,0.00019178,2]
[365422847,1749663043859,-480.0,0.00019178,2]
[365422849,1749663043869,-426.57189992,0.00019178,2]
[365422851,1749663043879,-490.0,0.00019178,2]
[365422853,1749663043889,-480.0,0.00019178,2]
[365422855,1749663043900,-480.0,0.00019178,2]
[365422857,1749663043911,-490.0,0.00019178,2]
[365422859,1749663043921,-490.0,0.00019178,2]
[365422861,1749663043932,-490.0,0.00019178,2]
[365422863,1749663043943,-532.21,0.00019178,2]
[365422865,1749663043953,-490.0,0.00019178,2]
[365422867,1749663043964,-365.30662621,0.00019178,2]
[365422869,1749663043974,-490.0,0.00019178,2]
[365422871,1749663043986,-490.0,0.00019178,2]
[365422873,1749663043996,-337.4574531,0.00019178,2]
[365422875,1749663044009,-490.0,0.00019178,2]
[365422876,1749663044020,-206.60077775,0.00019178,2]
[365422923,1749663044885,-283.39922225,0.00019178,2]
[365422924,1749663044895,-490.0,0.00019178,2]
[365422925,1749663044905,-490.0,0.00019178,2]
[365422926,1749663044915,-600.07,0.00019178,2]
[365422927,1749663044924,-480.0,0.00019178,2]
[365422928,1749663044933,-490.0,0.00019178,2]
[365422929,1749663044943,-490.0,0.00019178,2]
[365422930,1749663044952,-510.76457102,0.00019178,2]
[365422931,1749663044962,-490.0,0.00019178,2]
[365422932,1749663044972,-405.14086836,0.00019178,2]
[365422933,1749663044982,-480.0,0.00019178,2]
[365422934,1749663044992,-480.0,0.00019178,2]
[365422935,1749663045002,-490.0,0.00019178,2]
[365422936,1749663045012,-490.0,0.00019178,2]
[365422937,1749663045022,-490.0,0.00019178,2]
[365422938,1749663045034,-490.0,0.00019178,2]
[365422939,1749663045044,-490.0,0.00019178,2]
[365422940,1749663045053,-695.86,0.00019178,2]
[365422941,1749663045063,-490.0,0.00019178,2]
[365422942,1749663045072,-490.0,0.00019178,2]
[365422943,1749663045082,-743.02,0.00019178,2]
[365422944,1749663045092,-428.23911143,0.00019178,2]
[365422945,1749663045105,-480.0,0.00019178,2]
[365422946,1749663045115,-490.0,0.00019178,2]
[365422947,1749663045125,-490.0,0.00019178,2]
[365422948,1749663045135,-480.0,0.00019178,2]
[365422949,1749663045144,-671.71,0.00019178,2]
[365422950,1749663045155,-490.0,0.00019178,2]
[365422951,1749663045165,-490.0,0.00019178,2]
[365422952,1749663045175,-480.0,0.00019178,2]
[365422953,1749663045184,-490.0,0.00019178,2]
[365422954,1749663045194,-480.0,0.00019178,2]
[365422955,1749663045203,-490.0,0.00019178,2]
[365422956,1749663045213,-405.8420536,0.00019178,2]
[365422957,1749663045223,-490.0,0.00019178,2]
[365422958,1749663045232,-838.3,0.00019178,2]
[365422959,1749663045242,-480.0,0.00019178,2]
[365422960,1749663045251,-490.0,0.00019178,2]
[365422962,1749663045260,-480.0,0.00019178,2]
[365422963,1749663045271,-480.0,0.00019178,2]
[365422964,1749663045283,-490.0,0.00019178,2]
[365422965,1749663045292,-564.19,0.00019178,2]
[365422966,1749663045302,-480.0,0.00019178,2]
[365422967,1749663045311,-278.66074029,0.00019178,2]
[365422968,1749663045326,-1839.50925971,0.00019178,2]
[365422969,1749663045335,-490.0,0.00019178,2]
[365422970,1749663045345,-493.76,0.00019178,2]
[365422971,1749663045354,-490.0,0.00019178,2]
[365422972,1749663045363,-490.0,0.00019178,2]
[365422973,1749663045372,-490.0,0.00019178,2]
[365422974,1749663045382,-490.0,0.00019178,2]
[365422975,1749663045391,-490.0,0.00019178,2]
[365422976,1749663045401,-653.08,0.00019178,2]
[365422977,1749663045412,-490.0,0.00019178,2]
[365422978,1749663045422,-490.0,0.00019178,2]
[365422979,1749663045431,-490.0,0.00019178,2]
[365422980,1749663045441,-481.79838109,0.00019178,2]
[365422981,1749663045450,-490.0,0.00019178,2]
[365422982,1749663045459,-208.08533921,0.00019178,2]
[365422983,1749663045475,-281.91466079,0.00019178,2]
[365422984,1749663045485,-588.52945942,0.00019178,2]
[365422985,1749663045495,-411.47054058,0.00019178,2]
[365422986,1749663045504,-122.92945922,0.00019178,2]
[365422987,1749663045515,-500.16054078,0.00019178,2]
[365422988,1749663045524,-490.0,0.00019178,2]
[365422989,1749663045535,-480.0,0.00019178,2]
[365422990,1749663045544,-1149.25,0.00019178,2]
[365422991,1749663045554,-742.88,0.00019178,2]
[365422992,1749663045563,-480.0,0.00019178,2]
[365422993,1749663045573,-726.42,0.00019178,2]
[365422994,1749663045582,-1783.74,0.00019178,2]
[365422995,1749663045591,-480.0,0.00019178,2]
[365422996,1749663045601,-490.0,0.00019178,2]
[365422997,1749663045610,-490.0,0.00019178,2]
[365422998,1749663045619,-250.0,0.00019178,2]
[365422999,1749663045629,-510.99,0.00019178,2]
[365423000,1749663045638,-550.01913715,0.00019178,2]
[365423001,1749663045647,-480.0,0.00019178,2]
[365423002,1749663045657,-423.16444238,0.00019178,2]
[365423003,1749663045666,-493.3,0.00019178,2]
[365423004,1749663045675,-480.0,0.00019178,2]
[365423005,1749663045684,-711.51,0.00019178,2]
[365423006,1749663045694,-490.0,0.00019178,2]
[365423007,1749663045703,-490.0,0.00019178,2]
[365423008,1749663045712,-2159.66675134,0.00019178,2]
[365423009,1749663045737,-430.88324866,0.00019178,2]
[365423010,1749663045747,-19.11675134,0.00019178,2]
[365423011,1749663045795,-402.28370379,0.00019178,2]
[365423012,1749663045804,-747.84,0.00019178,2]
[365423013,1749663045814,-490.0,0.00019178,2]
[365423014,1749663045823,-292.66971334,0.00019178,2]
[365423015,1749663045836,-197.33028666,0.00019178,2]
[365423016,1749663045846,-420.0,0.00019178,2]
[365423017,1749663045856,-490.0,0.00019178,2]
[365423019,1749663045865,-490.0,0.00019178,2]
[365423020,1749663045875,-778.05,0.00019178,2]
[365423021,1749663045884,-527.65971362,0.00019178,2]
[365423022,1749663045896,-120.44028638,0.00019178,2]
[365423023,1749663045906,-504.73,0.00019178,2]
[365423024,1749663045916,-490.0,0.00019178,2]
[365423025,1749663045926,-480.0,0.00019178,2]
[365423026,1749663045935,-300.0,0.00019178,2]
[365423027,1749663045945,-490.0,0.00019178,2]
[365423028,1749663045955,-480.0,0.00019178,2]
[365423029,1749663045965,-490.0,0.00019178,2]
[365423030,1749663045974,-550.74,0.00019178,2]
[365423031,1749663045983,-499.02,0.00019178,2]
[365423032,1749663045993,-490.0,0.00019178,2]
[365423033,1749663046003,-480.0,0.00019178,2]
[365423034,1749663046012,-2981.08,0.00019178,2]
[365423035,1749663046022,-490.0,0.00019178,2]
[365423036,1749663046032,-480.0,0.00019178,2]
[365423037,1749663046042,-2417.07,0.00019178,2]
[365423038,1749663046051,-490.0,0.00019178,2]
[365423039,1749663046061,-490.0,0.00019178,2]
[365423040,1749663046071,-480.0,0.00019178,2]
[365423041,1749663046080,-480.0,0.00019178,2]
[365423042,1749663046090,-490.0,0.00019178,2]
[365423043,1749663046102,-312.15,0.00019178,2]
[365423044,1749663046111,-490.0,0.00019178,2]
[365423045,1749663046121,-490.0,0.00019178,2]
[365423046,1749663046130,-490.0,0.00019178,2]
[365423047,1749663046139,-480.0,0.00019178,2]
[365423048,1749663046149,-490.0,0.00019178,2]
[365423049,1749663046158,-480.0,0.00019178,2]
[365423050,1749663046168,-6556.26,0.00019178,2]
[365423051,1749663046180,-490.0,0.00019178,2]
[365423052,1749663046190,-346.91314556,0.00019178,2]
[365423053,1749663046200,-786.45,0.00019178,2]
[365423054,1749663046210,-500.0,0.00019178,2]
[365423055,1749663046220,-490.0,0.00019178,2]
[365423056,1749663046229,-490.0,0.00019178,2]
[365423057,1749663046239,-490.0,0.00019178,2]
[365423058,1749663046249,-5170.39,0.00019178,2]
[365423059,1749663046259,-480.0,0.00019178,2]
[365423060,1749663046270,-490.0,0.00019178,2]
[365423061,1749663046279,-490.0,0.00019178,2]
[365423062,1749663046289,-490.0,0.00019178,2]
[365423063,1749663046298,-490.0,0.00019178,2]
[365423064,1749663046308,-490.0,0.00019178,2]
[365423065,1749663046317,-480.0,0.00019178,2]
[365423066,1749663046327,-1014.65,0.00019178,2]
[365423067,1749663046337,-480.0,0.00019178,2]
[365423068,1749663046346,-490.0,0.00019178,2]
[365423069,1749663046356,-480.0,0.00019178,2]
[365423070,1749663046365,-480.0,0.00019178,2]
[365423071,1749663046374,-490.0,0.00019178,2]
[365423072,1749663046383,-525.53,0.00019178,2]
[365423073,1749663046392,-490.0,0.00019178,2]
[365423074,1749663046401,-1438.53,0.00019178,2]
[365423076,1749663046410,-480.0,0.00019178,2]
[365423077,1749663046420,-844.82,0.00019178,2]
[365423078,1749663046433,-490.0,0.00019178,2]
[365423079,1749663046442,-480.0,0.00019178,2]
[365423080,1749663046452,-490.0,0.00019178,2]
[365423081,1749663046461,-490.0,0.00019178,2]
[365423082,1749663046471,-490.0,0.00019178,2]
[365423083,1749663046480,-782.82,0.00019178,2]
[365423084,1749663046491,-421.42519659,0.00019178,2]
[365423085,1749663046500,-673.81,0.00019178,2]
[365423086,1749663046509,-480.0,0.00019178,2]
[365423087,1749663046519,-2969.66,0.00019178,2]
[365423088,1749663046529,-480.0,0.00019178,2]
[365423089,1749663046540,-611.58,0.00019178,2]
[365423090,1749663046549,-490.0,0.00019178,2]
[365423091,1749663046559,-480.0,0.00019178,2]
[365423092,1749663046568,-490.0,0.00019178,2]
[365423093,1749663046579,-490.0,0.00019178,2]
[365423094,1749663046588,-505.94,0.00019178,2]
[365423095,1749663046597,-490.0,0.00019178,2]
[365423096,1749663046606,-564.23,0.00019178,2]
[365423097,1749663046615,-604.05,0.00019178,2]
[365423098,1749663046624,-490.0,0.00019178,2]
[365423099,1749663046633,-490.0,0.00019178,2]
[365423100,1749663046642,-490.0,0.00019178,2]
[365423101,1749663046651,-934.18,0.00019178,2]
[365423102,1749663046660,-480.0,0.00019178,2]
[365423103,1749663046669,-490.0,0.00019178,2]
[365423104,1749663046678,-480.0,0.00019178,2]
[365423105,1749663046687,-480.0,0.00019178,2]
[365423106,1749663046696,-1337.84,0.00019178,2]
[365423107,1749663046706,-2773.89,0.00019178,2]
[365423108,1749663046715,-490.0,0.00019178,2]
[365423109,1749663046724,-480.0,0.00019178,2]
[365423110,1749663046733,-420.0,0.00019178,2]
[365423111,1749663046742,-1025.36,0.00019178,2]
[365423112,1749663046751,-480.0,0.00019178,2]
[365423113,1749663046760,-490.0,0.00019178,2]
[365423114,1749663046769,-490.0,0.00019178,2]
[365423115,1749663046779,-490.0,0.00019178,2]
[365423116,1749663046789,-480.0,0.00019178,2]
[365423117,1749663046798,-300.0,0.00019178,2]
[365423118,1749663046808,-805.3,0.00019178,2]
[365423119,1749663046817,-490.0,0.00019178,2]
[365423120,1749663046826,-650.74,0.00019178,2]
[365423121,1749663046835,-478.0,0.00019178,2]
[365423122,1749663046845,-480.0,0.00019178,2]
[365423123,1749663046854,-490.0,0.00019178,2]
[365423124,1749663046863,-1273.65,0.00019178,2]
[365423125,1749663046873,-1273.65,0.00019178,2]
[365423126,1749663046882,-584.85,0.00019178,2]
[365423127,1749663046891,-490.0,0.00019178,2]
[365423128,1749663046900,-490.0,0.00019178,2]
[365423129,1749663046909,-480.0,0.00019178,2]
[365423130,1749663046919,-490.0,0.00019178,2]
[365423131,1749663046928,-490.0,0.00019178,2]
[365423132,1749663046937,-1596.74,0.00019178,2]
[365423133,1749663046946,-1033.01,0.00019178,2]
[365423134,1749663046955,-480.0,0.00019178,2]
[365423135,1749663046965,-590.26,0.00019178,2]
[365423136,1749663046975,-1682.26,0.00019178,2]
[365423137,1749663046985,-313.109841,0.00019178,2]
[365423138,1749663046994,-490.0,0.00019178,2]
[365423139,1749663047003,-490.0,0.00019178,2]
[365423140,1749663047013,-490.0,0.00019178,2]
[365423141,1749663047024,-490.0,0.00019178,2]
[365423142,1749663047035,-480.0,0.00019178,2]
[365423143,1749663047044,-1040.17,0.00019178,2]
[365423144,1749663047053,-490.0,0.00019178,2]
[365423145,1749663047062,-490.0,0.00019178,2]
[365423146,1749663047071,-480.0,0.00019178,2]
[365423147,1749663047081,-490.0,0.00019178,2]
[365423148,1749663047090,-490.0,0.00019178,2]
[365423149,1749663047101,-839.26,0.00019178,2]
[365423150,1749663047111,-694.11,0.00019178,2]
[365423151,1749663047120,-490.0,0.00019178,2]
[365423152,1749663047129,-490.0,0.00019178,2]
[365423153,1749663047138,-490.0,0.00019178,2]
[365423154,1749663047149,-490.0,0.00019178,2]
[365423155,1749663047158,-490.0,0.00019178,2]
[365423156,1749663047167,-206.58213585,0.00019178,2]
[365423157,1749663047176,-160.59,0.00019178,2]
[365423158,1749663047185,-628.98,0.00019178,2]
[365423159,1749663047194,-480.0,0.00019178,2]
[365423160,1749663047203,-480.0,0.00019178,2]
[365423161,1749663047213,-490.0,0.00019178,2]
[365423162,1749663047222,-490.0,0.00019178,2]
[365423163,1749663047231,-513.6,0.00019178,2]
[365423164,1749663047240,-490.0,0.00019178,2]
[365423165,1749663047248,-490.0,0.00019178,2]
[365423166,1749663047258,-490.0,0.00019178,2]
[365423167,1749663047266,-490.0,0.00019178,2]
[365423168,1749663047275,-490.0,0.00019178,2]
[365423169,1749663047285,-480.0,0.00019178,2]
[365423170,1749663047295,-490.0,0.00019178,2]
[365423171,1749663047304,-490.0,0.00019178,2]
[365423172,1749663047313,-490.0,0.00019178,2]
[365423173,1749663047322,-490.0,0.00019178,2]
[365423174,1749663047332,-490.0,0.00019178,2]
[365423175,1749663047341,-480.0,0.00019178,2]
[365423176,1749663047350,-460.0,0.00019178,2]
[365423177,1749663047359,-490.0,0.00019178,2]
[365423178,1749663047368,-490.0,0.00019178,2]
[365423179,1749663047377,-490.0,0.00019178,2]
[365423180,1749663047386,-518.37,0.00019178,2]
[365423181,1749663047395,-490.0,0.00019178,2]
[365423182,1749663047404,-490.0,0.00019178,2]
[365423183,1749663047413,-490.0,0.00019178,2]
[365423184,1749663047423,-704.25,0.00019178,2]
[365423185,1749663047432,-490.0,0.00019178,2]
[365423186,1749663047441,-460.0,0.00019178,2]
[365423187,1749663047451,-1288.03,0.00019178,2]
[365423188,1749663047460,-480.0,0.00019178,2]
[365423189,1749663047469,-5687.93,0.00019178,2]
[365423190,1749663047478,-490.0,0.00019178,2]
[365423191,1749663047487,-581.85,0.00019178,2]
[365423192,1749663047496,-480.0,0.00019178,2]
[365423193,1749663047505,-490.0,0.00019178,2]
[365423194,1749663047514,-1021.87,0.00019178,2]
[365423195,1749663047523,-480.0,0.00019178,2]
[365423196,1749663047533,-480.0,0.00019178,2]
[365423197,1749663047542,-490.0,0.00019178,2]
[365423198,1749663047551,-490.0,0.00019178,2]
[365423199,1749663047560,-490.0,0.00019178,2]
[365423200,1749663047569,-490.0,0.00019178,2]
[365423201,1749663047579,-490.0,0.00019178,2]
[365423202,1749663047588,-480.0,0.00019178,2]
[365423203,1749663047597,-460.0,0.00019178,2]
[365423204,1749663047606,-490.0,0.00019178,2]
[365423205,1749663047615,-330.69032615,0.00019178,2]
[365423206,1749663047624,-480.0,0.00019178,2]
[365423207,1749663047633,-490.0,0.00019178,2]
[365423208,1749663047642,-838.09,0.00019178,2]
[365423209,1749663047652,-7001.24,0.00019178,2]
[365423210,1749663047661,-490.0,0.00019178,2]
[365423211,1749663047670,-490.0,0.00019178,2]
[365423212,1749663047679,-209.37284904,0.00019178,2]
[365423213,1749663047688,-1653.23,0.00019178,2]
[365423214,1749663047697,-480.0,0.00019178,2]
[365423215,1749663047706,-1424.64,0.00019178,2]
[365423216,1749663047715,-490.0,0.00019178,2]
[365423217,1749663047724,-490.0,0.00019178,2]
[365423218,1749663047733,-490.0,0.00019178,2]
[365423219,1749663047742,-1746.67,0.00019178,2]
[365423220,1749663047751,-490.0,0.00019178,2]
[365423221,1749663047760,-787.1,0.00019178,2]
[365423222,1749663047770,-707.41,0.00019178,2]
[365423223,1749663047779,-2368.44,0.00019178,2]
[365423224,1749663047789,-634.98,0.00019178,2]
[365423225,1749663047799,-530.84,0.00019178,2]
[365423226,1749663047808,-490.0,0.00019178,2]
[365423227,1749663047817,-490.0,0.00019178,2]
[365423228,1749663047826,-1137.37,0.00019178,2]
[365423229,1749663047835,-490.0,0.00019178,2]
[365423230,1749663047844,-490.0,0.00019178,2]
[365423231,1749663048051,-480.0,0.00019178,2]
[365423232,1749663048061,-480.0,0.00019178,2]
[365423233,1749663048070,-1766.63,0.00019178,2]
[365423234,1749663048080,-1766.63,0.00019178,2]
[365423235,1749663048089,-589.8,0.00019178,2]
[365423236,1749663048099,-583.46,0.00019178,2]
[365423237,1749663048111,-490.0,0.00019178,2]
[365423238,1749663048120,-538.22,0.00019178,2]
[365423239,1749663048129,-915.68,0.00019178,2]
[365423240,1749663048138,-490.0,0.00019178,2]
[365423241,1749663048148,-2642.88,0.00019178,2]
[365423242,1749663048158,-515.83,0.00019178,2]
[365423243,1749663048167,-798.37,0.00019178,2]
[365423244,1749663048177,-490.0,0.00019178,2]
[365423245,1749663048186,-557.64,0.00019178,2]